Cogmind - Beta 16.1 @@@ ROGUE MODE // 2026.04.05 @ 09:16:30 Player: FALKE Result: Destroyed by S-10 Pest with Light Assault Rifle Performance ------------- Evolutions (1) 500 Regions Visited (3) 600 Robots Destroyed (19) 95 Value Destroyed (549) 549 Prototype IDs (2) 40 Alien Tech Used (0) 0 Bonus (0) 0 TOTAL SCORE: 1784 Bonus ------- None Cogmind --------- Core Integrity 0/400 Matter 216/300 Energy 100/100 System Corruption 0% Temperature Cool (0) Movement Core (100) Ox1 Location -9/Mines Parts ------- > --- POWER (1) -------- (None) > --- PROPULSION (4) --- (None) > --- UTILITY (2) ------ Small Storage Unit > --- WEAPON (2) ------- (None) > --- INVENTORY (8) ---- Light Ion Engine Improved Heat Sink Small Storage Unit Shield Generator Heavy EM Pulse Gun Heavy EM Pulse Gun Light EM Pulse Cannon Peak State ------------ > --- POWER ------------ Light Nuclear Core > --- PROPULSION ------- Aluminum Leg Aluminum Leg Aluminum Leg Aluminum Leg > --- UTILITY ---------- Small Storage Unit Improved Terrain Scanner > --- WEAPON ----------- Heavy EM Pulse Gun Plasma Cutter > --- INVENTORY -------- Light Ion Engine Improved Heat Sink Small Storage Unit Shield Generator Heavy EM Pulse Gun Small Laser [Rating: 16] Favorites ----------- Power Light Nuclear Core Engine Ion Engine Power Core Light Nuclear Core Propulsion Aluminum Leg Treads Light Treads Leg Aluminum Leg Utility Small Storage Unit Device Improved Terrain Scanner Storage Small Storage Unit Weapon Small Laser Energy Gun Small Laser Energy Cannon Light EM Pulse Cannon Ballistic Gun Assault Rifle Ballistic Cannon Improved Light Cannon Launcher Rocket Launcher Special Weapon Plasma Cutter Build | -11 -10 -9 -9 ------- Run | Yrd Mat Mat Min Slots Evolved 2 | . . 2 . Power . | . . . . Propulsion 2 | . . 2 . Utility . | . . . . Weapon . | . . . . Parts Attached 31 | 9 18 4 . Power 3 | 1 2 . . Engine 2 | 1 1 . . Core 1 | . 1 . . Reactor . | . . . . Propulsion 8 | 2 5 1 . Treads 2 | . 2 . . Leg 6 | 2 3 1 . Wheel . | . . . . Hover . | . . . . Flight . | . . . . Utility 8 | 3 5 . . Device 4 | 1 3 . . Storage 4 | 2 2 . . Processor . | . . . . Hackware . | . . . . Protection . | . . . . Artifact . | . . . . Weapon 12 | 3 6 3 . Energy Gun 6 | 2 4 . . Energy Cannon 1 | . . 1 . Ballistic Gun 1 | 1 . . . Ballistic Cannon 1 | . . 1 . Launcher 1 | . . 1 . Special Weapon 2 | . 2 . . Impact Weapon . | . . . . Slashing Weapon . | . . . . Piercing Weapon . | . . . . Special Melee Weapon . | . . . . Unidentified Prototypes . | . . . . Parts Lost 10 | . 2 7 1 Power 1 | . . 1 . Propulsion 3 | . . 3 . Utility 2 | . 1 1 . Weapon 4 | . 1 2 1 Highest Loss Streak 8 | . 1 7 8 To Critical Strikes . | . . . . Average Backups 8 | 4 9 7 7 Power 1 | . 1 1 1 Propulsion 2 | 2 3 . . Utility 2 | . 3 3 3 Weapon 2 | . 1 2 3 Tool/Special . | . . . . Unused Backups 8 | . 6 . 2 Power 1 | . 1 . . Propulsion 3 | . 3 . . Utility 3 | . 2 . 1 Weapon 1 | . . . 1 Tool/Special . | . . . . Average Slot Usage (%) 96 | . 99 96 13 Engine 3 | . 4 . . Core 9 | . 9 10 . Treads 9 | . 14 . . Leg 21 | . 13 42 . Device 12 | . 13 10 . Storage 13 | . 14 11 11 Energy Gun 18 | . 24 7 . Energy Cannon 2 | . . 9 . Special Weapon 1 | . 2 . . Peak Build Rating 16 | 7 14 16 4 Average Rating 12 | 4 11 15 2 On Entrance 5 | . 7 14 2 Avg Prop Armor Cover (%) . | . . . . Naked Turns . | . . . . Heaviest Build 30 | 13 30 19 5 Greatest Support 40 | 20 40 40 3 Greatest Overweight (x) 1 | . . 1 1 Average Overweight (x) . | . . . 1 Largest Inventory Capacity 20 | 8 20 8 8 Average Capacity 10 | 7 11 8 8 Most Carried 15 | 8 15 8 8 Average Carried 8 | 4 9 7 7 Final Capacity 8 | 8 8 8 8 Final Carried 8 | 7 8 8 7 Class Distribution -------------------- 63% | Scavenger-Mutant 36% | Mutant Dominant Class ---------------- Scavenger-Mutant | -10/Materials Scavenger-Mutant | -9/Materials Mutant | -9/Mines Resources | -11 -10 -9 -9 ----------- Run | Yrd Mat Mat Min Matter Collected 553 | 286 267 . . Remotely 141 | 92 49 . . Salvage Created 675 | 82 582 9 2 Parts 31 | 3 24 2 2 Haulers Intercepted . | . . . . Recyclers Shooed . | . . . . Parts Field Recycled . | . . . . Retrieved Matter . | . . . . Parts Self-Destructed . | . . . . Prevented . | . . . . Parts Restored . | . . . . Kills | -11 -10 -9 -9 ------- Run | Yrd Mat Mat Min Combat Hostiles Destroyed 17 | . 13 3 1 Guns 13 | . 13 . . AOE 4 | . . 3 1 Classes Destroyed 5 | 1 3 1 . Recycler 1 | 1 . . . Mechanic 1 | . 1 . . Swarmer 4 | . . 3 1 Grunt 11 | . 11 . . Subdweller 2 | . 2 . . Best Kill Streak 3 | 1 2 3 1 Combat Bots Only 3 | . 2 3 1 Max Kills in Single Turn 2 | 1 1 2 1 Gunslinging . | . . . . Exploded 2 | . . 2 1 Melee . | . . . . Uniques/NPCs Destroyed . | . . . . Combat | -11 -10 -9 -9 -------- Run | Yrd Mat Mat Min Hostile Shots Fired 195 | . 84 73 38 Missed 50 | . 24 17 9 Hits 145 | . 60 56 29 Melee 4 | . . 4 . Projectile 141 | . 60 52 29 Critical Strikes 4 | . . 3 1 Damage Taken 1806 | . 719 802 285 Core 505 | . 104 186 215 Absorbed by Shields . | . . . . Regen/Repaired (Parts) 27 | . 27 . . Core Remaining (%) 79 | 100 58 . . Volleys Fired 101 | 2 86 12 1 Largest 2 | 2 2 2 1 Hottest 105 | 80 105 101 33 Shots Fired 168 | 4 145 18 1 Gun 128 | 4 118 6 . Cannon 6 | . . 6 . Launcher 4 | . . 3 1 Special 30 | . 27 3 . Kinetic 1 | . 1 . . Thermal 138 | 4 128 6 . Explosive 4 | . . 3 1 Electromagnetic 25 | . 16 9 . Robot Hit Streak 24 | 3 24 4 . Robot Miss Streak 2 | . 2 2 1 Penetration Max . | . . . . Secondary Targets . | . . . . Shots Hit Robots 93 | 3 80 10 . Core Hits 32 | 2 25 4 1 Critical Kills . | . . . . Critical Parts Destroyed . | . . . . Critical Strikes 2 | . 1 1 . Burn 1 | . 1 . . Sever 1 | . . 1 . Melee Attacks . | . . . . Impact . | . . . . Slashing . | . . . . Piercing . | . . . . Sneak Attacks . | . . . . Combat Hostiles . | . . . . Follow-up Attacks . | . . . . Damage Inflicted 1441 | 34 996 356 55 Guns 1094 | 34 994 66 . Cannons 61 | . . 61 . Explosions 260 | . . 205 55 Melee . | . . . . Ramming . | . . . . Kinetic 10 | . 10 . . Thermal 934 | 34 841 59 . Explosive 260 | . . 205 55 Electromagnetic 237 | . 145 92 . Impact . | . . . . Slashing . | . . . . Piercing . | . . . . Highest Corruption . | . . . . Average Corruption . | . . . . Corruption Purged . | . . . . Corruption Blocked . | . . . . Overload Shots . | . . . . Overflow Damage 2 | . . 2 . Projectiles . | . . . . Explosions 2 | . . 2 . Melee . | . . . . Knockbacks . | . . . . Impact . | . . . . Kinetic . | . . . . Secondary . | . . . . Self-Inflicted Damage 57 | . . . 57 Shots 1 | . . . 1 Rammed . | . . . . Targets Rammed . | . . . . Kicked . | . . . . Crushed . | . . . . Highest Temperature 366 | 36 366 150 . Average Temperature 88 | 20 96 51 . Received Heat Transfer 681 | . 393 288 . Effects 2 | . 2 . . Energy Bleed 1 | . 1 . . Damage (minor) 1 | . 1 . . Siege Activations . | . . . . Martial Activations . | . . . . Shielding Activations . | . . . . Robots Disrupted . | . . . . Combat Hostiles . | . . . . Robots Corrupted . | . . . . Combat Hostiles . | . . . . Parts Fried . | . . . . Impact Corruptions . | . . . . Robots Melted . | . . . . Combat Hostiles . | . . . . Parts Melted 5 | . 5 . . Heat Transferred 2288 | 75 2064 149 . Parts Sabotaged . | . . . . Parts Stolen . | . . . . Parts Stripped . | . . . . Power Chain Reactions . | . . . . Alert | -11 -10 -9 -9 ------- Run | Yrd Mat Mat Min Maximum Alert Level . | . . . . Low Security (%) 100 | 100 100 100 100 Level 1 . | . . . . Level 2 . | . . . . Level 3 . | . . . . Level 4 . | . . . . Level 5 . | . . . . High Security . | . . . . Max Security . | . . . . Peak Influence 91 | 5 72 91 30 Initial . | . . . . Average 14 | . 18 8 10 Influence Increases 520 | 5 329 156 30 Destroy 0b10 Robot/C 300 | . 220 60 20 Destroy 0b10 Robot/NC 10 | 5 5 . . Destroy Leader 50 | . 40 10 . Successful Hack 24 | . 19 5 . Disable Machine 15 | . 15 . . Destroy Structure 31 | . . 21 10 Lose Combat Pursuer 90 | . 30 60 . Influence Decreases 520 | 5 326 159 30 Entered New Map 3 | . . 3 . Time Decay 427 | 5 316 86 20 Lost Part 90 | . 10 70 10 Squads Dispatched 5 | . 3 2 . Investigation 3 | . 1 2 . Extermination . | . . . . Reinforcement 2 | . 2 . . Assault . | . . . . Garrison . | . . . . Intercept . | . . . . Searches Triggered . | . . . . Construction Impeded . | . . . . Haulers Reinforced . | . . . . Active Scanning Responses . | . . . . Cargo Convoy Interrupts . | . . . . Stealth | -11 -10 -9 -9 --------- Run | Yrd Mat Mat Min Distress Signals 1 | . . 1 . Communications Jammed . | . . . . Distress Signals . | . . . . Times Spotted 39 | . 21 15 3 Peak Tracking Total 7 | . 3 7 3 Tactical Retreats 5 | . 3 2 . Traps | -11 -10 -9 -9 ------- Run | Yrd Mat Mat Min Traps Triggered 1 | . . 1 . Indirectly . | . . . . Trap Hack Attempts . | . . . . Triggered . | . . . . Disarmed . | . . . . Reprogrammed . | . . . . Reused . | . . . . Traps Extracted . | . . . . Installed . | . . . . Triggered . | . . . . Machines | -11 -10 -9 -9 ---------- Run | Yrd Mat Mat Min Machines Disabled 1 | . 1 . . Max in Single Turn 1 | . 1 . . Machines Repaired . | . . . . Machines Dismantled 1 | . 1 . . Machines Sabotaged . | . . . . Overloaded Fab Kills . | . . . . Hacking | -11 -10 -9 -9 --------- Run | Yrd Mat Mat Min Machines Accessed 6 | . 4 2 . Terminals 4 | . 3 1 . Fabricators . | . . . . Repair Stations 1 | . 1 . . Recycling Units . | . . . . Scanalyzers 1 | . . 1 . Garrison Access . | . . . . Total Hacks 18 | . 14 4 . Successful 13 | . 10 3 . Failed 5 | . 4 1 . Catastrophic . | . . . . Database Lockouts . | . . . . Manual . | . . . . Terminals 12 | . 11 1 . Fabricators . | . . . . Repair Stations 3 | . 3 . . Recycling Units . | . . . . Scanalyzers 3 | . . 3 . Garrison Access . | . . . . Terminal Hacks 9 | . 8 1 . Record 2 | . 2 . . Prototype ID Bank 1 | . 1 . . Emergency Access Points 1 | . 1 . . Locate Traps 1 | . 1 . . Hauler Manifests 1 | . . 1 . Registered Components 1 | . 1 . . Zone Layout 2 | . 2 . . Fabricator Hacks . | . . . . Repair Station Hacks 2 | . 2 . . Scan Component 1 | . 1 . . Repair 1 | . 1 . . Recycling Unit Hacks . | . . . . Scanalyzer 2 | . . 2 . Retrieve Study 2 | . . 2 . Garrison Access Hacks . | . . . . Unauthorized Hacks . | . . . . Terminals . | . . . . Fabricators . | . . . . Repair Stations . | . . . . Recycling Units . | . . . . Scanalyzers . | . . . . Garrison Access . | . . . . Data Cores Recovered . | . . . . Used . | . . . . Hacking Detections 6 | . 4 2 . Full Trace Events 2 | . 1 1 . Feedback Events . | . . . . Feedback Blocked . | . . . . Robot Schematics Acquired . | . . . . Robots Built . | . . . . Authchips . | . . . . Time . | . . . . Total Robot Build Rating . | . . . . Part Schematics Acquired . | . . . . Parts Built . | . . . . Authchips . | . . . . Time . | . . . . Total Part Build Rating . | . . . . Part Studies Acquired 1 | . . 1 . Parts Repaired 1 | . 1 . . Time 26 | . 26 . . Parts Recycled . | . . . . Recycled Matter . | . . . . Retrieved Matter . | . . . . Retrieved Components . | . . . . Parts Scanalyzed . | . . . . Part Schematics Acquired . | . . . . Parts Damaged . | . . . . Bothacking | -11 -10 -9 -9 ------------ Run | Yrd Mat Mat Min Used RIF Installer . | . . . . Robots Hacked . | . . . . Non-combat . | . . . . Combat . | . . . . Robot Hacks Applied . | . . . . Relay Couplers Released . | . . . . Fabnet Peak Effective % . | . . . . Robots Rewired . | . . . . Allies Hacked . | . . . . Hacks Repelled . | . . . . Allies | -11 -10 -9 -9 -------- Run | Yrd Mat Mat Min Total Allies . | . . . . Largest Group . | . . . . Highest-Rated Group . | . . . . Highest-Rated Ally . | . . . . Total Orders . | . . . . Ally Attacks . | . . . . Total Damage . | . . . . Kills . | . . . . Allies Corrupted . | . . . . Allies Melted . | . . . . Intel | -11 -10 -9 -9 ------- Run | Yrd Mat Mat Min Active Infowar (turns) 1184 | . 578 606 . Terrain 1184 | . 578 606 . Robot Analysis Total . | . . . . Derelict Logs Recovered . | . . . . Drone Launches . | . . . . Drone Recoveries . | . . . . Exploration | -11 -10 -9 -9 ------------- Run | Yrd Mat Mat Min Turns Passed 2312 | 135 1490 645 42 Spaces Moved 821 | 117 457 217 30 Core 90 | 49 . 11 30 Treads 186 | . 186 . . Legs 545 | 68 271 206 . Wheels . | . . . . Hover . | . . . . Flight . | . . . . Fastest Speed 50 | 50 120 100 100 Average Speed 121 | 90 136 108 100 Slowest Speed 160 | 120 160 120 100 Overloaded Moves . | . . . . Propulsion Burnouts . | . . . . Robots Hopped . | . . . . Potential Cave-ins . | . . . . Cave-ins Triggered . | . . . . Exploration Rate (%) 16 | 6 39 15 6 Regions Visited 3 Branch Regions 1 Pre-discovered Areas . | . . . . Known Exits Taken . | . . . . Unknown Exits Taken 3 | 1 1 1 . Scrap Searched . | . . . . Spaces Dug . | . . . . Terrain Destroyed 38 | . . 24 14 Melee . | . . . . Projectile . | . . . . AOE 38 | . . 24 14 Terrain Rammed . | . . . . Walls Destroyed . | . . . . Machines Disabled . | . . . . Actions | -11 -10 -9 -9 --------- Run | Yrd Mat Mat Min Total 1949 | 143 1161 604 41 Wait 909 | . 536 364 9 Move 818 | 116 456 216 30 Hop . | . . . . Pick Up 44 | 14 27 3 . Fast Attach 3 | . 3 . . Attach 16 | 9 3 3 1 Detach 3 | 2 . 1 . Swap 25 | . 21 4 . Drop 27 | . 26 1 . Fire 101 | 2 86 12 1 Melee . | . . . . Ram . | . . . . Kick . | . . . . Crush . | . . . . Escape Stasis . | . . . . Rewire . | . . . . Trap . | . . . . Miscellaneous 3 | . 3 . . Route ------- -11/Scrapyard -10/Materials (discovered 4 exits: *Mat x2 / [Min] / [*Sub]) -9/Materials -9/Mines History --------- Turn | Location | Event 16 | -11/Scrapyard | Discovered new exit (range 14) 136 | -11/Scrapyard | Entered Materials 299 | -10/Materials | Discovered new exit (range 15) 300 | -10/Materials | Build established: Mutant 569 | -10/Materials | Discovered new exit (range 12) 736 | -10/Materials | Derelicts attacked the area 933 | -10/Materials | Build established: Scavenger-Mutant 1246 | -10/Materials | Repaired Sml. Laser 1372 | -10/Materials | Discovered new exit (range 7) 1584 | -10/Materials | Discovered new exit (range 15) 1626 | -10/Materials | Entered another Materials area 1626 | -9/Materials | Evolved 2 slots: Propulsion x2 2251 | -9/Materials | Discovered new exit (range 13) 2271 | -9/Materials | Entered Mines 2276 | -9/Mines | Core integrity fell below 50% 2288 | -9/Mines | Core integrity fell below 20% 2313 | -9/Mines | Lost 8 parts (1p3n1u3w) 2313 | -9/Mines | Destroyed by S-10 Pest with Light Assault Rifle Last Messages --------------- 02237_ ALERT: Alarm triggered, dispatching investigation squad. 02243_ Y-45 Defender Lgt. Armor Plating severed. 02245_ R-06 Scavenger collects Lgt. Armor Plating. 02246_ Aluminum Leg+ destroyed. 02248_ Aluminum Leg+ severed. 02249_ R-06 Scavenger collects Aluminum Leg+. 02249_ K-01 Serf collects debris. 02251_ Sml. Laser destroyed. 02251_ Lgt. Nuclear Core destroyed. 02251_ EXIT=FOUND 02252_ Plasma Cutter destroyed. 02258_ Aluminum Leg+ destroyed. 02269_ M-13 Machinist repairs Y-45 Defender. LOCATION=UNKNOWN GOAL=ESCAPE Something is scanning the area. 02280_ S-10 Pest destroyed. 02282_ Rocket Launcher destroyed. Map ----- +----------------------------------------------------+ | ?????????????????????????????????????????????????? | | ?????????????????????????????????????????????????? | | ?????????????????????????????????????????????????? | | ?????????????????????????????????????????????????? | | ?????????????????????????????????????????????????? | | ?????????????????????????????????????????????????? | | ??????????????????####???????????????????????????? | | ?????????????????## ##??????????????????????????? | | ?????????????????# ##?????????????????????????? | | ?????????????????# ##????????????????????????? | | ?????????????????## #????????????????????????? | | ??????????????????## #????????????????????????? | | ???????????????????# ##### #???????????????????? | | ?????????????????### ?????????????? | | ?????????????????# [ #######???????????????????? | | ?????????????????## %* #?????????????????????????? | | ?????????????????# #?????????????????????????? | | ?????????????????## #######???????????????????? | | ?????????????????# ## #???????????????????? | | ?????????????????### ## #### #???????????????????? | | ???????????????????# ## #??# #???????????????????? | | ???????????????????# ## #??# #???????????????????? | | ???????????????????# #??# ##??????????????????? | | ???????????????????# ####?## #??????????????????? | | ?????????????????? #??### #??????????????????? | | ?????????????????#####??#@s #??????????????????? | | ???????????????????????# s #??????????????????? | | ???????????????????????# #??????????????????? | | ???????????????????????## ##??????????????????? | | ????????????????????????######???????????????????? | | ?????????????????????????????????????????????????? | | ?????????????????????????????????????????????????? | | ?????????????????????????????????????????????????? | | ?????????????????????????????????????????????????? | | ?????????????????????????????????????????????????? | | ?????????????????????????????????????????????????? | | ?????????????????????????????????????????????????? | | ?????????????????????????????????????????????????? | | ?????????????????????????????????????????????????? | | ?????????????????????????????????????????????????? | | ?????????????????????????????????????????????????? | | ?????????????????????????????????????????????????? | | ?????????????????????????????????????????????????? | | ?????????????????????????????????????????????????? | | ?????????????????????????????????????????????????? | | ?????????????????????????????????????????????????? | | ?????????????????????????????????????????????????? | | ?????????????????????????????????????????????????? | | ?????????????????????????????????????????????????? | | ?????????????????????????????????????????????????? | +----------------------------------------------------+ Best States ------------- Heat Dissipation 39 Energy Generation 14 Energy Capacity 250 Matter Stores 300 Matter Capacity 300 Sight Range 16 Terrain Scan Range 16 Terrain Scan Density 10 Evasion (%) 55 Recoil Reduction 2 Item Schematics ----------------- None Robot Schematics ------------------ None Fabricated ------------ Nothing Repaired ---------- Sml. Laser | 61% | -10/Materials Studied --------- Aluminum Leg | -9/Materials | Hacked Alien Tech Used ----------------- None Achievements -------------- None Challenges ------------ None Game ------ Seed TowerGravmagKatana Manual? 0 Play Time 00:54:42 Cumulative 6.3 hours Start 2026.04.05 @ 06:10:32 End 2026.04.05 @ 09:16:30 Sessions 1 Manual Loads 0 Difficulty Rogue Special Mode None Game No. 13 Rogue 10 Adventurer 3 Explorer 0 Win Type - Total 0 Types 0/0/0/0/0/0/0/0/0/0 Lore% 4 Gallery% 8 Achievement% 10 Wizard Run 0 Options --------- Layout 2 ASCII 0 Keyboard 0 Movement Mouse Keybinds 0 Fullscreen 1 Font 32/SmallcapsGlow Map View 50x44 Zoom Use 0% Tactical HUD 1 Map Filters NONE Filters NONE Steam 1 RUN: e6e7f20a-fc00-4a14-ac7e-80880ab67373